bitfinex-derivatives/quotes_ETHF0:USTF0_20250923
["timestamp","ask_amount","ask_price","bid_price","bid_amount"]
[1758641627397,2.3817,4187.3,4187.2,1.43277]
[1758641627684,1.17704,4187.6,4187.5,0.63815]
[1758641627871,0.7475,4187.6,4187.5,4.06625]
[1758641628075,3.1292,4187.6,4187.5,4.39255]
[1758641628480,0.4382,4188.2,4188.1,0.7552]
[1758641628880,0.8677,4188.0,4187.9,0.63811]
[1758641629074,3.6935,4188.0,4187.9,0.67751]
[1758641629270,0.4382,4187.7,4187.6,0.2086]
[1758641629476,1.17704,4187.6,4187.5,3.63735]
[1758641629673,3.55874,4187.6,4187.5,3.63735]
[1758641630283,3.55874,4187.6,4187.5,3.2078]
[1758641631177,3.55874,4187.6,4187.5,3.63735]
[1758641631382,3.1292,4187.6,4187.5,4.06625]
[1758641631581,3.1292,4187.6,4187.5,4.39255]
[1758641632886,0.7475,4187.6,4187.5,4.39255]
[1758641633078,3.1292,4187.6,4187.5,4.39255]
[1758641633274,0.96411,4187.9,4187.8,0.42951]
[1758641633475,0.42954,4187.7,4187.5,3.2078]
[1758641633682,3.54854,4187.6,4187.5,3.2078]
[1758641634484,3.79654,4187.6,4187.5,3.2078]
[1758641634685,0.84788,4187.3,4187.2,0.42957]
[1758641634885,3.54858,4187.3,4187.2,0.42957]
[1758641635082,3.54858,4187.3,4187.2,0.64187]
[1758641635392,0.7373,4187.3,4187.2,1.17277]
[1758641636284,0.5346,4187.3,4187.2,1.17277]
[1758641636590,0.5346,4187.5,4187.4,1.17276]
[1758641636888,3.2426,4187.5,4187.4,1.17276]
[1758641637479,0.7373,4187.5,4187.4,1.17276]
[1758641637686,0.5346,4187.5,4187.4,1.17276]
[1758641639386,0.5346,4187.9,4187.8,1.17271]
[1758641639593,1.16681,4187.9,4187.8,0.2123]
[1758641639795,0.4183,4187.7,4187.6,0.64184]
[1758641640085,0.42954,4187.6,4187.5,0.42955]
[1758641640390,1.29045,4187.5,4187.4,0.88985]
[1758641640584,3.67215,4187.5,4187.4,0.4603]
[1758641640893,0.7373,4187.1,4187.0,0.2123]
[1758641641188,0.7373,4187.1,4187.0,1.4208]
[1758641641384,0.5346,4187.1,4187.0,1.4208]
[1758641641583,0.8609,4187.5,4187.4,0.85616]
[1758641641786,0.7373,4187.5,4187.4,1.42076]
[1758641641991,3.119,4187.5,4187.4,1.42076]
[1758641642187,0.5346,4187.5,4187.4,1.42076]
[1758641642388,4.1931,4187.8,4187.7,0.4266]
[1758641642588,1.29045,4187.5,4187.4,0.248]
[1758641642784,0.2156,4187.2,4187.1,0.64188]
[1758641642989,0.6452,4187.0,4186.9,0.4266]
[1758641643189,1.2905,4187.0,4186.9,1.10421]
[1758641643889,0.8609,4187.0,4186.9,1.10421]
[1758641644083,1.2905,4187.0,4186.9,0.85621]
[1758641644284,0.8609,4187.0,4186.9,1.10421]
[1758641644490,1.2905,4187.0,4186.9,0.85621]
[1758641644685,1.2905,4187.0,4186.9,0.88991]
[1758641644888,0.8609,4187.0,4186.9,0.88991]
[1758641645698,1.2905,4187.0,4186.9,0.88991]
[1758641646297,1.2905,4187.0,4186.9,1.10421]
[1758641646694,1.2905,4187.0,4186.9,0.6746]
[1758641647084,0.42961,4186.9,4186.8,3.2078]
[1758641647290,1.16691,4186.9,4186.8,3.2078]
[1758641647886,0.42964,4186.6,4186.5,0.248]
[1758641648086,3.119,4186.6,4186.5,0.4603]
[1758641648399,3.119,4186.6,4186.5,0.88995]
[1758641648793,3.54864,4186.6,4186.5,0.4603]
[1758641649301,3.54864,4186.6,4186.5,0.67765]
[1758641649499,3.54864,4186.6,4186.5,0.88995]
[1758641650000,3.54864,4186.6,4186.5,0.4603]
[1758641650291,3.54864,4186.6,4186.5,0.248]
[1758641650693,0.42966,4186.4,4186.3,3.2078]
[1758641650895,3.54866,4186.4,4186.3,3.4201]
[1758641651100,0.7373,4186.4,4186.3,4.38167]
[1758641651293,1.16696,4186.4,4186.3,4.38167]
[1758641651499,1.16696,4186.4,4186.3,3.6329]
[1758641651897,1.16696,4186.4,4186.3,4.06257]
[1758641652305,0.7373,4186.4,4186.3,4.62967]
[1758641652502,1.16696,4186.4,4186.3,4.62967]
[1758641654299,1.16696,4186.4,4186.3,3.4558]
[1758641654499,1.16696,4186.4,4186.3,4.09937]
[1758641654805,1.16696,4186.4,4186.3,3.6697]
[1758641655705,1.16696,4186.4,4186.3,3.4217]
[1758641655897,1.16696,4186.4,4186.3,3.6697]
[1758641656701,1.16696,4186.4,4186.3,0.4619]
[1758641657394,1.16696,4186.4,4186.3,0.2139]
[1758641659106,1.17767,4186.3,4186.2,0.248]
[1758641659309,3.55937,4186.3,4186.2,0.248]
[1758641661811,3.55937,4186.3,4186.2,0.67768]
[1758641662103,3.55937,4186.3,4186.2,0.248]
[1758641662500,1.3114,4186.0,4185.9,0.42971]
[1758641662698,0.74631,4185.9,4185.8,3.4558]
[1758641662908,3.55941,4185.9,4185.8,3.6697]
[1758641663110,1.17771,4185.9,4185.8,3.8825]
[1758641663306,0.748,4185.9,4185.8,4.31222]
[1758641663803,1.17771,4185.9,4185.8,3.4217]
[1758641664008,1.17771,4185.9,4185.8,3.2078]
[1758641665307,1.30746,4185.5,4185.4,0.2183]
[1758641665705,3.68916,4185.5,4185.4,0.2183]
[1758641666311,1.18117,4185.4,4185.3,3.88558]
[1758641666611,3.1331,4185.4,4185.3,4.63068]
[1758641666813,0.7514,4185.4,4185.3,4.63068]
[1758641667208,1.68159604,4187.6,4186.5,0.1282]
[1758641667405,0.50288697,4188.1,4188.0,0.1282]
[1758641667706,3.3237,4189.5,4188.4,0.3117]
[1758641667905,0.86261,4189.0,4188.9,0.2183]
[1758641668113,0.6822,4189.0,4188.9,0.53]
[1758641668408,2.8149,4189.0,4188.9,0.53]
[1758641669318,3.1331,4189.0,4188.9,0.53]
[1758641670008,2.8149,4189.0,4188.9,0.53]
[1758641670306,2.8149,4189.0,4188.9,0.7451]
[1758641671710,3.2078,4190.2,4188.8,0.42941]
[1758641671711,0.99554,4189.6,4189.1,0.3117]
[1758641671913,2.5919,4189.3,4189.2,0.7451]
[1758641674012,2.8149,4189.3,4189.2,0.7451]
[1758641674215,3.1331,4189.3,4189.2,0.7451]
[1758641675417,0.2102,4189.3,4189.2,0.7451]
[1758641676317,0.74751,4189.9,4189.1,3.63718]
[1758641676318,0.6812,4189.8,4189.7,0.7451]
[1758641676717,3.3811,4189.8,4189.7,0.7451]
[1758641677320,3.0629,4189.8,4189.7,0.7451]
[1758641678115,2.8149,4189.8,4189.7,0.7451]
[1758641678415,2.5919,4189.8,4189.7,0.7451]
[1758641678811,3.84728,4190.2,4190.1,0.7451]
[1758641679013,4.09528,4190.2,4190.1,0.7451]
[1758641679214,3.889,4190.2,4190.1,0.7451]
[1758641679620,3.641,4190.2,4190.1,0.7451]
[1758641679819,3.9592,4190.2,4190.1,0.7451]
[1758641680123,0.7514,4189.9,4189.8,0.3117]
[1758641680424,2.8149,4189.9,4189.8,0.3117]
[1758641680616,1.1807,4189.9,4189.8,0.53]
[1758641681625,1.1807,4189.9,4189.8,0.3117]
[1758641682326,1.1807,4189.9,4189.8,0.53]
[1758641682724,1.1807,4189.9,4189.8,1.17441]
[1758641682926,1.1807,4189.9,4189.8,0.7451]
[1758641683126,1.1807,4189.9,4189.8,0.53]
[1758641683727,1.18071,4189.8,4189.7,0.248]
[1758641684030,0.42933,4189.6,4189.5,0.6582]
[1758641684229,0.86257,4189.3,4189.2,4.16718]
[1758641684419,0.86257,4189.3,4189.2,3.9858]
[1758641684615,1.18077,4189.3,4189.2,3.7378]
[1758641685724,0.42939,4189.1,4189.0,0.1282]
[1758641685926,1.18081,4188.9,4188.8,0.53]
[1758641686122,3.56251,4188.9,4188.8,0.53]
[1758641686428,1.18081,4188.9,4188.8,0.53]
[1758641687031,1.18081,4188.9,4188.8,0.7451]
[1758641688634,1.18081,4188.9,4188.8,0.3117]
[1758641689330,1.18081,4188.9,4188.8,0.53]
[1758641690628,0.42941,4188.9,4188.8,0.7451]
[1758641691035,0.63961,4188.9,4188.8,0.7451]
[1758641694435,1.18741,4188.9,4188.8,0.7451]
[1758641694638,0.42942,4188.8,4188.7,3.7902]
[1758641694839,3.57932,4188.8,4188.7,3.7902]
[1758641695033,3.57932,4188.8,4188.7,4.0037]
[1758641695631,3.57932,4188.8,4188.7,3.7557]
[1758641696841,3.57932,4188.8,4188.7,3.9619]
[1758641697136,3.24592,4188.8,4188.7,3.9619]
[1758641698141,2.81112,4188.8,4188.7,3.9619]
[1758641698828,0.42941,4189.0,4188.9,0.42941]
[1758641699041,1.07337,4189.5,4189.2,0.3344]
[1758641699237,0.64977,4189.3,4189.2,0.7541]
[1758641699541,0.42937,4189.3,4189.2,1.18348]
[1758641699740,3.2078,4189.7,4189.4,1.18345]
[1758641699741,0.42935,4189.5,4189.4,1.18345]
[1758641699943,2.3817,4189.5,4189.4,1.43145]
[1758641700137,2.81105,4189.5,4189.4,2.28547559]
[1758641700329,3.24585,4189.5,4189.4,1.60812559]
[1758641700641,3.57925,4189.5,4189.4,1.0021]
[1758641701543,0.42935,4189.5,4189.4,2.03748559]
[1758641702241,0.3334,4189.9,4189.4,2.03748559]
[1758641702541,4.224,4190.2,4190.1,0.7541]
[1758641702929,4.65327,4190.2,4189.5,1.22562559]
[1758641703137,0.2204,4189.6,4189.5,2.40907559]
[1758641703336,3.0314,4189.9,4189.8,0.4197]
[1758641703639,0.6497,4189.9,4189.8,0.7541]
[1758641703836,0.8641,4189.9,4189.8,0.7541]
[1758641704043,0.8641,4189.9,4189.6,0.67733]
[1758641704044,3.88508,4190.2,4190.1,0.3344]
[1758641704346,3.85748,4190.2,4190.1,0.7541]
[1758641704546,3.2078,4190.2,4190.1,1.18338]
[1758641705141,4.07187,4190.2,4190.1,0.7541]
[1758641705350,1.19749,4190.0,4189.9,0.248]
[1758641705549,3.57919,4190.0,4189.9,0.5824]
[1758641705748,3.57919,4190.0,4189.9,0.7959]
[1758641707150,3.57919,4190.0,4189.9,0.5479]
[1758641707845,0.76274,4189.6,4189.5,1.18842559]
[1758641708047,0.86416,4189.4,4189.3,0.85402559]
[1758641708246,0.86416,4189.4,4189.3,1.85512559]
[1758641708942,0.86416,4189.4,4189.3,2.28449559]
[1758641709143,0.86416,4189.4,4189.3,1.85512559]
[1758641710049,0.86416,4189.4,4189.3,2.28449559]
[1758641710352,0.86416,4189.4,4189.3,1.85512559]
[1758641710650,0.86416,4189.4,4189.3,1.0011]
[1758641710948,0.4348,4189.4,4189.3,1.43047]
[1758641711149,0.86416,4189.4,4189.3,1.0011]
[1758641711346,0.86416,4189.4,4189.3,0.3344]
[1758641711564,0.42938,4189.2,4189.1,0.85402559]
[1758641711850,0.7501,4189.1,4189.0,0.9584]
[1758641712050,0.7501,4189.1,4189.0,1.3097]
[1758641712051,3.24029,4189.1,4189.0,1.3097]
[1758641712353,0.42939,4189.1,4189.0,1.3097]
[1758641712853,10.73032,4190.9,4189.0,1.3097]
[1758641712854,0.42935,4189.5,4189.4,0.87086]
[1758641713043,3.02705,4189.5,4189.4,1.18066]
[1758641714349,2.5977,4189.5,4189.4,1.18066]
[1758641714552,0.64535,4189.5,4189.4,1.18066]
[1758641714954,3.24025,4189.5,4189.4,0.7513]
[1758641715548,0.4292,4189.5,4189.4,1.18066]
[1758641715744,0.247,4189.8,4189.6,0.64853]
[1758641715745,0.64533,4189.7,4189.6,0.64853]
[1758641715950,3.02703,4189.7,4189.6,1.18063]
[1758641716251,0.64533,4189.7,4189.6,1.18063]
[1758641717854,8.875,5133.1,4190.1,0.42927]
[1758641717855,0.3209,4190.6,4190.1,0.42927]
[1758641718054,0.64527,4190.2,4190.1,4.38838]
[1758641718254,0.216,4190.3,4190.2,0.4415]
[1758641718458,0.64526,4190.3,4190.2,1.18057]
[1758641718659,0.64526,4190.3,4190.2,0.7513]
[1758641719157,0.64526,4190.3,4190.2,1.18057]
[1758641719553,0.216,4190.3,4190.2,1.18057]
[1758641719961,0.216,4190.6,4190.5,0.99974]
[1758641720362,2.5977,4190.6,4190.5,0.99974]
[1758641720661,2.5977,4190.6,4190.5,1.30954]
[1758641720867,3.5287,4192.0,4191.3,0.3098]
[1758641721164,0.4292,4191.7,4191.6,0.7513]
[1758641722757,0.7501,4191.7,4191.6,0.529]
[1758641723061,0.7501,4191.7,4191.6,0.776]
[1758641724557,0.7501,4191.7,4191.1,0.3321]
[1758641724558,1.17627,4191.2,4191.1,0.3321]
[1758641724767,0.22,4190.9,4190.8,0.7546]
[1758641725061,0.22,4190.9,4190.8,1.0016]
[1758641725255,0.7471,4191.3,4191.2,0.2118]
[1758641725449,0.7471,4191.3,4191.2,0.5439]
[1758641725651,3.1288,4191.3,4191.2,0.7546]
[1758641726463,3.1288,4191.3,4191.0,0.3321]
[1758641726464,0.7471,4191.1,4191.0,0.3321]
[1758641726655,0.7471,4191.1,4190.7,0.3321]
[1758641726656,1.17631,4190.8,4190.7,0.3321]
[1758641726856,3.55801,4190.8,4190.7,0.7546]
[1758641727055,3.24861,4190.8,4190.7,0.7546]
[1758641727360,0.22,4190.8,4190.7,0.7546]
[1758641727753,0.4377,4190.8,4190.7,1.0016]
[1758641728863,3.1288,4190.8,4190.7,1.0016]
[1758641729750,3.1288,4190.8,4190.6,3.2078]
[1758641729751,0.64922,4190.7,4190.6,3.2078]
[1758641729956,3.55802,4190.7,4190.6,3.4548]
[1758641730162,1.17632,4190.7,4190.6,3.4548]
[1758641730467,1.17632,4190.7,4190.6,3.2078]
[1758641731454,0.86692,4190.7,4190.6,3.9624]
[1758641731656,0.42922,4190.8,4190.7,0.76132]
[1758641731863,0.64919,4191.0,4190.9,0.7546]
[1758641732061,0.86689,4191.0,4190.9,0.7546]
[1758641732258,1.17629,4191.0,4190.9,0.3321]
[1758641732458,0.86692,4190.7,4190.6,3.9624]
[1758641732661,3.24862,4190.7,4190.6,3.9624]
[1758641732956,0.86692,4190.7,4190.6,3.9624]
[1758641733467,1.17632,4190.7,4190.6,4.2094]
[1758641733669,0.3094,4191.0,4190.6,4.63863]
[1758641733875,2.3817,4190.7,4190.6,4.63863]
[1758641734170,2.8109,4190.9,4190.8,1.18381]
[1758641734370,3.2078,4191.5,4190.9,1.1838]
[1758641734371,0.42919,4191.0,4190.9,1.1838]
[1758641734665,0.42916,4191.3,4191.2,0.3321]
[1758641734863,0.42916,4191.3,4191.2,1.0016]
[1758641735563,0.42916,4191.4,4191.3,0.7546]
[1758641735762,2.81086,4191.4,4191.3,0.7546]
[1758641735965,0.42916,4191.4,4191.3,0.7546]
[1758641736164,3.6455,4192.0,4191.9,0.7546]
[1758641736365,6.70329,4192.0,4191.9,0.7546]
[1758641736574,6.70329,4192.0,4191.0,0.1322]
[1758641736575,0.2177,4190.8,4190.7,1.06413491]
[1758641736872,0.7471,4190.8,4190.7,0.6695]
[1758641737669,0.7471,4190.8,4190.7,0.4225]
[1758641737865,0.95866,4190.3,4190.2,1.06413491]
[1758641738068,1.17636,4190.3,4190.2,0.2118]
[1758641738367,0.7471,4190.2,4190.1,3.4196]
[1758641739171,0.7471,4190.2,4190.1,0.2118]
[1758641739366,0.42932,4189.7,4189.5,4.06013491]
[1758641739560,0.7471,4189.6,4189.5,3.4196]
[1758641739763,0.7471,4189.6,4189.5,3.6666]
[1758641739962,0.7471,4189.6,4189.5,3.8773]
[1758641740867,0.42937,4189.3,4189.2,0.85233491]
[1758641741063,0.42937,4189.3,4188.9,1.06413491]
[1758641741064,0.4294,4189.0,4188.9,1.06413491]
[1758641741374,1.306,4189.0,4188.9,0.2118]
[1758641741569,0.95883,4188.7,4188.6,0.2118]
[1758641741768,0.42938,4189.2,4188.8,0.42941]
[1758641742076,2.3817,4189.1,4189.0,0.7546]
[1758641743174,0.7471,4189.9,4189.8,0.2118]
[1758641743377,0.247,4189.9,4189.4,0.3321]
[1758641743566,0.247,4189.9,4189.2,0.247]
[1758641743567,0.3094,4190.0,4189.9,0.7546]
[1758641743768,0.42929,4190.1,4190.0,0.3321]
[1758641743973,2.8194,4190.0,4189.9,0.6695]
[1758641744373,3.2583,4190.0,4189.9,0.6695]
[1758641744574,0.95866,4190.4,4190.3,0.7546]
[1758641745175,0.5294,4190.4,4190.3,0.4225]
[1758641745480,3.2078,4190.7,4190.6,0.7546]
[1758641745776,5.5895,4190.7,4190.6,0.7546]
[1758641745976,3.7372,4190.7,4190.6,0.7546]
[1758641746172,0.5294,4190.7,4190.6,0.4225]
[1758641747677,0.7471,4190.7,4190.6,0.4225]
[1758641747881,0.7471,4190.2,4189.9,4.06013491]
[1758641748084,0.7471,4190.1,4190.0,0.42929]
[1758641748276,0.7471,4190.1,4190.0,0.64109]
[1758641748475,3.1288,4190.1,4190.0,0.85179]
[1758641748780,1.3059,4190.0,4189.9,3.2078]
[1758641749085,3.6876,4190.0,4189.9,3.2078]
[1758641749376,3.6876,4190.0,4189.9,3.4196]
[1758641749572,3.6876,4190.0,4189.9,3.2078]
[1758641749882,3.2583,4190.0,4189.9,3.63711]
[1758641750082,3.2583,4190.0,4189.9,4.05961]
[1758641750276,3.2583,4190.0,4189.9,3.6303]
[1758641750580,0.1295,4189.5,4189.4,0.85233491]
[1758641750784,0.7471,4189.4,4189.3,3.6666]
[1758641751876,0.86702,4189.8,4189.7,0.2118]
[1758641752083,0.4377,4189.8,4189.7,0.2118]
[1758641752276,3.1288,4189.8,4189.7,0.2118]
[1758641752778,0.7471,4189.8,4189.7,0.7546]
[1758641752976,0.3285,4189.7,4189.3,3.2078]
[1758641753175,0.7559,4189.4,4189.3,3.4205]
[1758641753377,0.7559,4189.4,4189.3,3.6675]
[1758641753883,0.7559,4189.4,4189.3,4.2145]
[1758641754279,0.5395,4189.8,4189.7,1.18903]
[1758641754475,0.96882,4189.8,4189.7,0.7597]
[1758641754681,3.56692,4189.8,4189.7,0.7597]
[1758641754983,0.85675,4189.5,4189.4,0.2127]
[1758641755285,0.7559,4189.5,4189.4,1.43606]
[1758641756187,1.18521,4189.9,4189.8,0.4356]
[1758641757794,1.18521,4189.9,4189.8,0.2127]
[1758641757984,0.42934,4189.6,4189.5,0.5711]
[1758641758186,3.35054,4189.6,4189.5,1.0067]
[1758641758386,1.18524,4189.6,4189.5,0.6826]
[1758641758678,0.75789,4189.1,4188.9,0.85233491]
[1758641758887,3.6887,4189.0,4188.9,0.2127]
[1758641759094,3.6887,4189.0,4188.9,0.4597]
[1758641759895,3.6887,4189.0,4188.9,0.88911]
[1758641760091,3.6887,4189.0,4188.9,0.4597]
[1758641760295,3.6887,4189.0,4188.9,0.247]
[1758641760491,1.18531,4188.9,4188.8,3.2078]
[1758641760697,0.97855,4188.5,4188.3,4.48960491]
[1758641760895,0.5395,4188.4,4188.3,4.70230491]
[1758641761097,0.96896,4188.4,4188.3,5.49630491]
[1758641761292,0.5395,4188.4,4188.3,5.49630491]
[1758641761794,1.32047,4189.2,4188.8,0.7597]
[1758641761795,0.42941,4188.9,4188.8,0.7597]
[1758641762091,0.42941,4188.9,4188.8,1.43612]
[1758641762394,0.4294,4189.1,4188.9,0.2229]
[1758641762599,0.4294,4189.1,4189.0,0.7597]
[1758641762796,0.4294,4189.1,4189.0,1.1891]
[1758641763095,0.42938,4189.2,4189.1,0.42939]
[1758641763295,3.02208,4189.2,4189.1,0.86499]
[1758641763497,3.02208,4189.2,4189.1,0.2127]
[1758641763498,1.18528,4189.2,4189.1,0.2127]
[1758641763693,0.7559,4188.7,4188.6,0.247]
[1758641764000,1.30705,4188.5,4188.4,0.2127]
[1758641764199,3.68875,4188.5,4188.4,0.88916]
[1758641765198,3.68875,4188.5,4188.4,0.4597]
[1758641765392,0.85686,4188.4,4188.2,0.85072358]
[1758641765605,3.56706,4188.4,4188.3,3.4205]
[1758641765800,0.7559,4188.4,4188.3,4.39697]
[1758641766099,3.2078,4189.1,4189.0,0.4294]
[1758641766300,1.18527,4189.3,4189.2,0.7597]
[1758641766498,0.4274,4188.9,4188.6,0.85072358]
[1758641766710,0.7559,4188.8,4188.7,0.247]
[1758641766907,0.7579,4189.0,4188.9,0.86501]
[1758641767105,0.42937,4189.3,4189.2,0.42938]
[1758641767307,0.42937,4189.3,4189.2,1.18908]
[1758641767812,0.96887,4189.3,4189.2,1.18908]
[1758641768409,0.42931,4189.9,4189.7,0.64203]
[1758641768601,2.81101,4189.9,4189.8,0.247]
[1758641768804,0.3285,4190.2,4189.8,0.247]
[1758641769001,2.3817,4190.0,4189.8,1.0067]
[1758641769209,0.3285,4189.9,4189.8,1.43602]
[1758641769416,0.211,4190.3,4190.2,0.7597]
[1758641769610,0.5395,4190.3,4190.2,0.7597]
[1758641769911,2.9212,4190.3,4190.2,3.9675]
[1758641770309,0.5395,4190.3,4190.2,3.9675]
[1758641770512,0.5395,4190.3,4189.7,1.28113378]
[1758641770513,0.42931,4189.9,4189.7,0.85090781]
[1758641770814,0.7559,4189.7,4189.6,1.06360781]
[1758641771013,0.3285,4190.2,4189.7,0.305]
[1758641771209,0.5234,4190.2,4190.1,0.7294]
[1758641772116,0.5234,4190.4,4190.3,0.5148]
[1758641772303,0.7298,4190.4,4190.3,0.4244]
[1758641772616,0.5234,4190.0,4189.9,0.7294]
[1758641772810,0.5234,4190.0,4189.9,0.9764]
[1758641773722,0.64236,4190.4,4190.3,0.2146]
[1758641774313,1.15906,4190.4,4190.3,0.4244]
[1758641774514,1.15906,4190.4,4190.3,0.7294]
[1758641774914,1.15906,4190.4,4190.3,0.4244]
[1758641775510,1.15906,4190.4,4189.9,0.305]
[1758641775715,1.29129,4190.0,4189.9,0.2146]
[1758641776016,0.862,4190.0,4189.9,0.6714]
[1758641776206,0.7298,4190.0,4189.9,0.9764]
[1758641776915,0.862,4190.0,4189.9,0.4616]
[1758641777318,0.862,4190.0,4189.9,1.1007]
[1758641777521,0.7298,4190.0,4189.9,1.4057]
[1758641778213,1.15909,4190.0,4189.9,1.4057]
[1758641779015,0.7298,4190.0,4189.9,1.4057]
[1758641779218,1.15909,4190.0,4189.9,1.4057]
[1758641779408,1.29129,4190.0,4189.9,0.4244]
[1758641779613,1.1591,4189.9,4189.8,3.2078]
[1758641779812,1.1591,4189.9,4189.8,3.4548]
[1758641780218,1.1591,4189.9,4189.8,3.6694]
[1758641781221,1.1591,4189.9,4189.8,4.09871]
[1758641781419,1.1591,4189.9,4189.8,3.6694]
[1758641781713,1.1591,4189.9,4189.8,4.09871]
[1758641782416,1.1591,4189.9,4189.8,3.6694]
[1758641783011,1.1591,4189.9,4189.8,0.4616]
[1758641783916,0.5581,4189.5,4189.3,3.2078]
[1758641784215,3.1376,4189.4,4189.3,3.2078]
[1758641784419,3.1376,4189.4,4189.3,3.85347]
[1758641784613,1.18526,4189.4,4189.3,3.6417]
[1758641784812,1.18526,4189.4,4189.3,4.07107]
[1758641785714,1.18526,4189.4,4189.3,3.6417]
[1758641786314,1.18526,4189.4,4189.3,4.07107]
[1758641786622,1.18526,4189.4,4189.3,4.39627]
[1758641786921,1.18526,4189.4,4189.3,3.6417]
[1758641787112,1.18526,4189.4,4189.3,3.4241]
[1758641787317,1.18526,4189.4,4189.3,3.6711]
[1758641787714,1.18526,4189.4,4189.3,3.2078]
[1758641788515,0.85577,4189.3,4189.2,0.247]
[1758641788712,0.85577,4189.3,4188.6,0.247]
[1758641788713,0.4264,4188.7,4188.6,0.247]
[1758641788916,1.18533,4188.7,4188.6,0.247]
[1758641789321,1.18533,4188.7,4188.6,0.4633]
[1758641791523,1.18533,4188.7,4188.6,0.2163]
[1758641792627,1.18537,4188.3,4188.2,4.27500781]
[1758641792926,1.18537,4188.3,4188.2,4.52200781]
[1758641793325,0.7559,4188.3,4188.2,4.31818]
[1758641793526,1.18537,4188.3,4188.2,4.64338]
[1758641793719,1.18537,4188.3,4188.2,4.2139]
[1758641794120,1.18537,4188.3,4188.2,4.64338]
[1758641794320,0.7559,4188.3,4188.2,4.64338]
[1758641795222,1.18537,4188.3,4188.2,4.64338]
[1758641796330,0.7559,4188.3,4188.2,4.64338]
[1758641797633,1.18537,4188.3,4188.2,4.64338]
[1758641800422,1.18537,4188.3,4188.2,3.6417]
[1758641800628,1.18537,4188.3,4188.0,0.2163]
[1758641800629,1.18539,4188.1,4188.0,0.2163]
[1758641800825,3.56709,4188.1,4188.0,0.2163]
[1758641801027,1.18539,4188.1,4188.0,0.2163]
[1758641801834,0.8876,4188.0,4187.9,0.89281]
[1758641802127,0.5581,4188.0,4187.9,0.247]
[1758641802331,0.8876,4188.0,4187.9,0.18001]
[1758641802926,0.8876,4188.0,4187.9,0.60952]
[1758641804429,0.4612,4188.0,4187.9,0.60952]
[1758641804735,0.6852,4188.0,4187.9,0.60952]
[1758641805127,0.8876,4188.0,4187.9,0.60952]
[1758641805630,1.3171,4188.0,4187.9,0.18001]
[1758641806129,0.4612,4188.0,4187.9,0.60952]
[1758641806629,0.1317,4188.5,4188.4,0.42946]
[1758641806835,0.1317,4188.5,4188.4,3.88426]
[1758641807135,0.1317,4189.0,4188.9,0.42941]
[1758641807329,0.4612,4189.0,4188.9,0.67641]
[1758641808132,0.1317,4189.5,4189.4,0.42936]
[1758641808133,0.3557,4189.5,4189.4,0.42936]
[1758641808333,0.6852,4189.5,4189.4,0.42936]
[1758641808835,0.8876,4189.5,4189.4,0.42936]
[1758641809027,0.4264,4189.2,4189.1,0.8501448]
[1758641809226,0.7559,4189.2,4189.1,1.0971448]
[1758641809428,0.7559,4189.2,4189.1,1.5265248]
[1758641809623,0.7559,4189.2,4189.1,0.67638]
[1758641810434,0.3295,4189.2,4189.1,0.67638]
[1758641811741,0.7559,4189.2,4189.1,0.67638]
[1758641811945,0.7559,4189.2,4189.1,0.42938]
[1758641812241,0.1317,4189.5,4188.9,3.4548]
[1758641812242,0.8876,4189.0,4188.9,3.4548]
[1758641813841,0.8876,4189.0,4188.9,3.88421]
[1758641814344,1.317,4189.0,4188.9,0.247]
[1758641814544,1.16171,4188.9,4188.8,0.42941]
[1758641814738,0.7323,4188.9,4188.8,0.42941]
[1758641815945,1.16171,4188.9,4188.8,0.42941]
[1758641816443,1.16173,4188.7,4188.6,0.42944]
[1758641817542,0.7323,4188.7,4188.6,0.42944]
[1758641820247,1.16173,4188.7,4188.6,0.42944]
[1758641820450,1.16173,4188.7,4188.3,3.2078]
[1758641820451,1.16174,4188.6,4188.5,0.67645]
[1758641820646,1.16176,4188.4,4188.3,3.63727]
[1758641820845,1.16176,4188.4,4188.3,0.42947]
[1758641821057,0.7323,4188.4,4188.3,0.42947]
[1758641822150,0.5179,4188.4,4188.3,0.42947]
[1758641823148,1.16176,4188.4,4188.3,0.67647]
[1758641823353,0.7323,4188.4,4188.3,0.67647]
[1758641824251,0.1332,4188.5,4188.4,0.42946]
[1758641824458,0.1332,4188.5,4188.4,0.86486]
[1758641824651,0.3376,4188.5,4188.4,0.86486]
[1758641824951,0.3361,4189.0,4188.9,0.42941]
[1758641825156,0.3361,4189.0,4188.9,0.86481]
[1758641826151,0.5505,4189.5,4189.4,0.86476]
[1758641826352,0.4452,4189.5,4189.4,1.01306]
[1758641826957,0.6496,4189.5,4189.4,0.86476]
[1758641828057,0.864,4189.5,4189.4,0.86476]
[1758641828251,0.5505,4189.5,4189.4,0.247]
[1758641828452,0.864,4189.5,4189.4,0.4686]
[1758641828756,0.864,4189.5,4189.4,0.6824]
[1758641829553,0.864,4189.5,4189.4,0.4686]
[1758641830057,0.864,4189.5,4189.4,0.89796]
[1758641830258,0.864,4189.5,4189.4,1.11176]
[1758641832159,0.864,4189.5,4189.4,0.67636]
[1758641833458,0.864,4189.5,4189.4,0.88096]
[1758641833955,0.864,4189.5,4189.4,0.67636]
[1758641834761,0.864,4189.5,4189.4,0.88096]
[1758641835059,0.864,4189.5,4189.4,1.10216]